[Event "*** Titled Tuesday Blitz"]
[Site "Chess.com"]
[Date "2020.05.12"]
[Round "8"]
[White "gross-aleks"]
[Black "vinniethepooh"]
[Result "1-0"]
[WhiteElo "2500"]
[BlackElo "2612"]
[TimeControl "180+1"]
[EndTime "11:32:24 PDT"]
[Termination "gross-aleks won by resignation"]

1. c4 {[%clk 0:02:53.8]} 1... Nf6 {[%clk 0:02:59.7]} 2. Nf3 {[%clk 0:02:52.9]}
2... e6 {[%clk 0:02:57.6]} 3. b3 {[%clk 0:02:50.8]} 3... d5 {[%clk 0:02:57.6]}
4. Bb2 {[%clk 0:02:50.7]} 4... Be7 {[%clk 0:02:57.6]} 5. cxd5 {[%clk 0:02:49.8]}
5... exd5 {[%clk 0:02:57.4]} 6. e3 {[%clk 0:02:49.3]} 6... O-O {[%clk
0:02:57.8]} 7. Be2 {[%clk 0:02:49.5]} 7... h6 {[%clk 0:02:58.2]} 8. O-O {[%clk
0:02:49.2]} 8... Bf5 {[%clk 0:02:58.8]} 9. d3 {[%clk 0:02:47.1]} 9... c6 {[%clk
0:02:59]} 10. a3 {[%clk 0:02:45.8]} 10... Re8 {[%clk 0:02:59.1]} 11. Re1 {[%clk
0:02:45]} 11... Nbd7 {[%clk 0:02:59.3]} 12. Nbd2 {[%clk 0:02:44.6]} 12... Bh7
{[%clk 0:02:59]} 13. Qc2 {[%clk 0:02:31.1]} 13... Nc5 {[%clk 0:02:55.3]} 14. b4
{[%clk 0:02:28.3]} 14... Ne6 {[%clk 0:02:51.7]} 15. Nb3 {[%clk 0:02:28.2]} 15...
Nd7 {[%clk 0:02:44.9]} 16. Bf1 {[%clk 0:02:23.4]} 16... Bf6 {[%clk 0:02:42.1]}
17. Rec1 {[%clk 0:02:13.4]} 17... Qb6 {[%clk 0:02:33.5]} 18. Bxf6 {[%clk
0:02:10.8]} 18... Nxf6 {[%clk 0:02:33.6]} 19. Qc3 {[%clk 0:02:09.4]} 19... Rad8
{[%clk 0:02:30]} 20. Nfd4 {[%clk 0:02:07.2]} 20... Nxd4 {[%clk 0:02:20.3]} 21.
Qxd4 {[%clk 0:02:06.9]} 21... Nd7 {[%clk 0:02:14.4]} 22. a4 {[%clk 0:01:53.7]}
22... Qxd4 {[%clk 0:01:55.3]} 23. Nxd4 {[%clk 0:01:52.5]} 23... a5 {[%clk
0:01:48.6]} 24. bxa5 {[%clk 0:01:39.1]} 24... Ra8 {[%clk 0:01:41.3]} 25. Nb3
{[%clk 0:01:38.8]} 25... Ra7 {[%clk 0:01:12.1]} 26. d4 {[%clk 0:01:36.9]} 26...
Rc8 {[%clk 0:00:59.1]} 27. Rc3 {[%clk 0:01:32.8]} 27... Nb8 {[%clk 0:00:42.3]}
28. Nc5 {[%clk 0:01:28.6]} 28... Rc7 {[%clk 0:00:36.1]} 29. Rb3 {[%clk
0:01:23.7]} 29... Bf5 {[%clk 0:00:32.9]} 30. a6 {[%clk 0:01:20.4]} 30... Nxa6
{[%clk 0:00:28.4]} 31. Bxa6 {[%clk 0:01:20.3]} 31... bxa6 {[%clk 0:00:29.3]} 32.
a5 {[%clk 0:01:18.9]} 32... Ra8 {[%clk 0:00:24.9]} 33. Rb6 {[%clk 0:01:18.2]}
33... Bc8 {[%clk 0:00:24]} 34. Rab1 {[%clk 0:01:16.5]} 34... Kf8 {[%clk
0:00:23.1]} 35. Rb8 {[%clk 0:01:15]} 35... Raa7 {[%clk 0:00:19.9]} 36. R1b6
{[%clk 0:01:09.4]} 36... Ke7 {[%clk 0:00:20.2]} 37. f3 {[%clk 0:01:08.6]} 37...
f5 {[%clk 0:00:19.7]} 38. h4 {[%clk 0:01:07.7]} 38... g5 {[%clk 0:00:19.7]} 39.
hxg5 {[%clk 0:01:06.8]} 39... hxg5 {[%clk 0:00:20.6]} 40. Kf2 {[%clk 0:01:07.3]}
40... Kf6 {[%clk 0:00:17.7]} 41. Nd3 {[%clk 0:01:04.9]} 41... Rab7 {[%clk
0:00:14.2]} 42. Rxc8 {[%clk 0:00:57.5]} 1-0

[Event "*** Titled Tuesday Blitz"]
[Site "Chess.com"]
[Date "2020.05.12"]
[Round "8"]
[White "Jbd735"]
[Black "m_ezat"]
[Result "0-1"]
[WhiteElo "2440"]
[BlackElo "2597"]
[TimeControl "180+1"]
[EndTime "11:32:25 PDT"]
[Termination "m_ezat won by checkmate"]

1. e4 {[%clk 0:03:00.9]} 1... c6 {[%clk 0:02:59.3]} 2. d4 {[%clk 0:03:00.1]}
2... d5 {[%clk 0:02:59.4]} 3. Nc3 {[%clk 0:02:59.1]} 3... dxe4 {[%clk
0:02:58.8]} 4. Nxe4 {[%clk 0:02:59.1]} 4... Nd7 {[%clk 0:02:58.7]} 5. Nf3 {[%clk
0:02:56.1]} 5... Ngf6 {[%clk 0:02:58.9]} 6. Nxf6+ {[%clk 0:02:54.3]} 6... Nxf6
{[%clk 0:02:58.9]} 7. Bd3 {[%clk 0:02:53.8]} 7... Bg4 {[%clk 0:02:58.7]} 8. c3
{[%clk 0:02:53.4]} 8... e6 {[%clk 0:02:58.7]} 9. h3 {[%clk 0:02:53.3]} 9... Bh5
{[%clk 0:02:58.2]} 10. O-O {[%clk 0:02:53.5]} 10... Be7 {[%clk 0:02:57.3]} 11.
Bf4 {[%clk 0:02:52.4]} 11... O-O {[%clk 0:02:53.5]} 12. Be2 {[%clk 0:02:51.4]}
12... c5 {[%clk 0:02:39.6]} 13. dxc5 {[%clk 0:02:46.6]} 13... Bxc5 {[%clk
0:02:37.5]} 14. Ne5 {[%clk 0:02:40.4]} 14... Qxd1 {[%clk 0:02:34.2]} 15. Bxd1
{[%clk 0:02:40.2]} 15... Bxd1 {[%clk 0:02:26.4]} 16. Raxd1 {[%clk 0:02:37.9]}
16... Rfd8 {[%clk 0:02:03.8]} 17. Nd3 {[%clk 0:02:15.3]} 17... Bb6 {[%clk
0:02:03.1]} 18. c4 {[%clk 0:02:07.6]} 18... Ne4 {[%clk 0:02:01.1]} 19. Be3
{[%clk 0:01:12.7]} 19... Bxe3 {[%clk 0:01:59]} 20. fxe3 {[%clk 0:01:13.6]} 20...
Rac8 {[%clk 0:01:55.5]} 21. Nf2 {[%clk 0:00:18.5]} 21... Nd2 {[%clk 0:01:47.3]}
22. Rfe1 {[%clk 0:00:16.9]} 22... Nxc4 {[%clk 0:01:47.1]} 23. Rxd8+ {[%clk
0:00:13.7]} 23... Rxd8 {[%clk 0:01:46.6]} 24. b3 {[%clk 0:00:14.6]} 24... Ne5
{[%clk 0:01:42.2]} 25. Rc1 {[%clk 0:00:13.4]} 25... Nc6 {[%clk 0:01:39.4]} 26.
Kf1 {[%clk 0:00:12.5]} 26... Rd2 {[%clk 0:01:37.4]} 27. a4 {[%clk 0:00:12.5]}
27... Rb2 {[%clk 0:01:37]} 28. Rc3 {[%clk 0:00:12.3]} 28... g6 {[%clk
0:01:35.2]} 29. Ne4 {[%clk 0:00:11.5]} 29... Na5 {[%clk 0:01:28]} 30. Rc8+
{[%clk 0:00:05.4]} 30... Kg7 {[%clk 0:01:27.4]} 31. Rc7 {[%clk 0:00:05.8]} 31...
Nxb3 {[%clk 0:01:16.6]} 32. Nd6 {[%clk 0:00:05.8]} 32... Nd2+ {[%clk 0:01:04.5]}
33. Ke1 {[%clk 0:00:05.6]} 33... Kf6 {[%clk 0:01:03.4]} 34. Rxf7+ {[%clk
0:00:03.5]} 34... Ke5 {[%clk 0:01:03.2]} 35. Nxb7 {[%clk 0:00:03.8]} 35... Ke4
{[%clk 0:00:57.9]} 36. Re7 {[%clk 0:00:03.4]} 36... Kxe3 {[%clk 0:00:54.1]} 37.
Rxe6+ {[%clk 0:00:03.3]} 37... Ne4 {[%clk 0:00:53.9]} 38. Nc5 {[%clk 0:00:02.2]}
38... Rb1# {[%clk 0:00:53.4]} 0-1

[Event "*** Titled Tuesday Blitz"]
[Site "Chess.com"]
[Date "2020.05.12"]
[Round "8"]
[White "Srisshhhtea"]
[Black "fidezivkovic"]
[Result "0-1"]
[WhiteElo "2134"]
[BlackElo "2367"]
[TimeControl "180+1"]
[EndTime "11:32:25 PDT"]
[Termination "fidezivkovic won on time"]

1. d4 {[%clk 0:03:00.9]} 1... Nf6 {[%clk 0:02:59]} 2. c4 {[%clk 0:03:00.1]} 2...
g6 {[%clk 0:02:58.4]} 3. Nc3 {[%clk 0:02:59]} 3... Bg7 {[%clk 0:02:58.7]} 4. e4
{[%clk 0:02:59]} 4... d6 {[%clk 0:02:58.9]} 5. Bd3 {[%clk 0:02:59.5]} 5... O-O
{[%clk 0:02:58.8]} 6. Nge2 {[%clk 0:02:59.9]} 6... c5 {[%clk 0:02:57.8]} 7. d5
{[%clk 0:02:59.3]} 7... e6 {[%clk 0:02:56.5]} 8. O-O {[%clk 0:02:59.7]} 8...
exd5 {[%clk 0:02:55.5]} 9. cxd5 {[%clk 0:02:55.5]} 9... a6 {[%clk 0:02:52.9]}
10. a4 {[%clk 0:02:54.7]} 10... Re8 {[%clk 0:02:50.1]} 11. Qc2 {[%clk
0:02:44.1]} 11... Nbd7 {[%clk 0:02:46.2]} 12. f4 {[%clk 0:02:40.3]} 12... Qc7
{[%clk 0:02:41.8]} 13. b3 {[%clk 0:02:38.8]} 13... b6 {[%clk 0:02:29.1]} 14. Bb2
{[%clk 0:02:35.5]} 14... Ng4 {[%clk 0:02:14.1]} 15. Qd2 {[%clk 0:02:33.2]} 15...
Bb7 {[%clk 0:02:11.3]} 16. h3 {[%clk 0:02:31.1]} 16... Ngf6 {[%clk 0:02:08.1]}
17. Rac1 {[%clk 0:02:29.5]} 17... b5 {[%clk 0:01:48.6]} 18. axb5 {[%clk
0:02:27.5]} 18... axb5 {[%clk 0:01:47.7]} 19. Nxb5 {[%clk 0:02:26.1]} 19... Qb6
{[%clk 0:01:46.8]} 20. Nec3 {[%clk 0:02:13.8]} 20... c4+ {[%clk 0:01:39.6]} 21.
Kh1 {[%clk 0:02:04.5]} 21... cxd3 {[%clk 0:01:38.4]} 22. Qxd3 {[%clk 0:01:09.5]}
22... Nc5 {[%clk 0:01:37.4]} 23. Qc4 {[%clk 0:01:00.4]} 23... Ba6 {[%clk
0:01:34.3]} 24. e5 {[%clk 0:00:51.9]} 24... Nfd7 {[%clk 0:01:31.6]} 25. e6
{[%clk 0:00:46.3]} 25... Nf6 {[%clk 0:01:29]} 26. exf7+ {[%clk 0:00:45.1]} 26...
Kxf7 {[%clk 0:01:28.1]} 27. f5 {[%clk 0:00:41]} 27... Kg8 {[%clk 0:01:27.2]} 28.
fxg6 {[%clk 0:00:40]} 28... hxg6 {[%clk 0:01:26.5]} 29. Ra1 {[%clk 0:00:28.4]}
29... Rab8 {[%clk 0:01:24.8]} 30. Na4 {[%clk 0:00:09.7]} 30... Qxb5 {[%clk
0:01:23.6]} 31. Bxf6 {[%clk 0:00:08.9]} 31... Qxc4 {[%clk 0:01:20.6]} 32. bxc4
{[%clk 0:00:09.8]} 32... Bxc4 {[%clk 0:01:19]} 33. Rf4 {[%clk 0:00:08.2]} 33...
Bxd5 {[%clk 0:01:16]} 34. Bxg7 {[%clk 0:00:03.3]} 34... Kxg7 {[%clk 0:01:15]}
35. Nxc5 {[%clk 0:00:01.7]} 35... dxc5 {[%clk 0:01:13.6]} 36. Ra7+ {[%clk
0:00:01.5]} 36... Rb7 {[%clk 0:01:12]} 37. Ra5 {[%clk 0:00:01.2]} 37... Rc7
{[%clk 0:01:09.8]} 0-1

[Event "*** Titled Tuesday Blitz"]
[Site "Chess.com"]
[Date "2020.05.12"]
[Round "8"]
[White "beto-betun"]
[Black "annamaja"]
[Result "1-0"]
[WhiteElo "2140"]
[BlackElo "2282"]
[TimeControl "180+1"]
[EndTime "11:32:25 PDT"]
[Termination "beto-betun won on time"]

1. d4 {[%clk 0:03:00.9]} 1... Nf6 {[%clk 0:03:00]} 2. c4 {[%clk 0:03:00.6]} 2...
e6 {[%clk 0:03:00.4]} 3. Nf3 {[%clk 0:02:57.7]} 3... d5 {[%clk 0:02:59.3]} 4. g3
{[%clk 0:02:53.7]} 4... Bb4+ {[%clk 0:02:58]} 5. Nbd2 {[%clk 0:02:41.4]} 5...
dxc4 {[%clk 0:02:50.6]} 6. a3 {[%clk 0:02:38.1]} 6... Bxd2+ {[%clk 0:02:30.7]}
7. Bxd2 {[%clk 0:02:38]} 7... b5 {[%clk 0:02:10.7]} 8. Bg2 {[%clk 0:02:37.1]}
8... Bb7 {[%clk 0:02:09.9]} 9. O-O {[%clk 0:02:35.1]} 9... O-O {[%clk
0:02:09.8]} 10. a4 {[%clk 0:02:33.7]} 10... a6 {[%clk 0:02:04.5]} 11. b3 {[%clk
0:02:33.6]} 11... cxb3 {[%clk 0:01:59.3]} 12. Qxb3 {[%clk 0:02:33.9]} 12... Bd5
{[%clk 0:01:51]} 13. Qb2 {[%clk 0:02:25.7]} 13... c6 {[%clk 0:01:44.2]} 14. axb5
{[%clk 0:02:21.2]} 14... cxb5 {[%clk 0:01:39.2]} 15. Ba5 {[%clk 0:02:02.6]}
15... Qc8 {[%clk 0:01:31.5]} 16. Rfc1 {[%clk 0:02:00.8]} 16... Bc4 {[%clk
0:00:55.3]} 17. Ne5 {[%clk 0:01:56]} 17... Ra7 {[%clk 0:00:55.1]} 18. Nxc4
{[%clk 0:01:24.4]} 18... bxc4 {[%clk 0:00:55.2]} 19. Qc3 {[%clk 0:01:18.8]}
19... Nd5 {[%clk 0:00:19.3]} 20. Qxc4 {[%clk 0:01:17.4]} 20... Qd7 {[%clk
0:00:19.1]} 21. e4 {[%clk 0:01:09.4]} 21... Nf6 {[%clk 0:00:16.6]} 22. d5 {[%clk
0:00:59.2]} 22... exd5 {[%clk 0:00:15.4]} 23. exd5 {[%clk 0:01:00.1]} 23... h6
{[%clk 0:00:12.1]} 24. h4 {[%clk 0:00:54.5]} 24... Re8 {[%clk 0:00:12]} 25. Qd3
{[%clk 0:00:50.9]} 25... Re5 {[%clk 0:00:09.9]} 26. d6 {[%clk 0:00:47.2]} 26...
Rb5 {[%clk 0:00:06.4]} 27. Rc2 {[%clk 0:00:38.9]} 27... Qe6 {[%clk 0:00:04.6]}
28. Rc7 {[%clk 0:00:35]} 28... Rxc7 {[%clk 0:00:02.8]} 29. dxc7 {[%clk
0:00:35.8]} 29... Nc6 {[%clk 0:00:02.4]} 30. Bxc6 {[%clk 0:00:32.5]} 30... Qxc6
{[%clk 0:00:01.5]} 31. Qd8+ {[%clk 0:00:32]} 31... Kh7 {[%clk 0:00:01.2]} 32.
c8=Q {[%clk 0:00:31.3]} 1-0

[Event "*** Titled Tuesday Blitz"]
[Site "Chess.com"]
[Date "2020.05.12"]
[Round "8"]
[White "Reader777"]
[Black "PhileKhoob"]
[Result "1-0"]
[WhiteElo "2599"]
[BlackElo "2447"]
[TimeControl "180+1"]
[EndTime "11:32:28 PDT"]
[Termination "Reader777 won by resignation"]

1. d4 {[%clk 0:03:00.9]} 1... Nf6 {[%clk 0:02:58.6]} 2. c4 {[%clk 0:03:00.7]}
2... g6 {[%clk 0:02:57.6]} 3. g3 {[%clk 0:03:00.6]} 3... Bg7 {[%clk 0:02:57.3]}
4. Bg2 {[%clk 0:03:00.9]} 4... d5 {[%clk 0:02:58.2]} 5. cxd5 {[%clk 0:03:00.6]}
5... Nxd5 {[%clk 0:02:59.1]} 6. e4 {[%clk 0:03:00.9]} 6... Nb6 {[%clk
0:02:58.7]} 7. Ne2 {[%clk 0:03:00.5]} 7... c5 {[%clk 0:02:58.8]} 8. d5 {[%clk
0:03:00.2]} 8... e6 {[%clk 0:02:57.2]} 9. O-O {[%clk 0:02:59.7]} 9... O-O {[%clk
0:02:55.9]} 10. Nbc3 {[%clk 0:02:58.3]} 10... Na6 {[%clk 0:02:54.5]} 11. Nf4
{[%clk 0:02:57.6]} 11... e5 {[%clk 0:02:41.5]} 12. Nfe2 {[%clk 0:02:50.5]} 12...
Nc4 {[%clk 0:02:37.2]} 13. b3 {[%clk 0:02:49.3]} 13... Nd6 {[%clk 0:02:35.8]}
14. Be3 {[%clk 0:02:48.4]} 14... f5 {[%clk 0:02:23.6]} 15. f3 {[%clk 0:02:42.2]}
15... f4 {[%clk 0:02:13]} 16. Bf2 {[%clk 0:02:34.7]} 16... g5 {[%clk 0:02:08.8]}
17. g4 {[%clk 0:02:09.4]} 17... Bd7 {[%clk 0:02:07]} 18. Nc1 {[%clk 0:02:08.2]}
18... b5 {[%clk 0:02:00.3]} 19. Nd3 {[%clk 0:02:06.7]} 19... Rc8 {[%clk
0:01:57.2]} 20. Rc1 {[%clk 0:02:05.1]} 20... c4 {[%clk 0:01:47.6]} 21. bxc4
{[%clk 0:02:04]} 21... bxc4 {[%clk 0:01:43.7]} 22. Nb2 {[%clk 0:02:01.3]} 22...
Qa5 {[%clk 0:01:32.2]} 23. Qd2 {[%clk 0:01:43.8]} 23... Nc5 {[%clk 0:01:15.2]}
24. Rfd1 {[%clk 0:01:34.4]} 24... Rb8 {[%clk 0:01:13.4]} 25. Bf1 {[%clk
0:01:30.5]} 25... Rb4 {[%clk 0:00:46]} 26. a3 {[%clk 0:01:25.4]} 26... Qxa3
{[%clk 0:00:43.6]} 27. Bxc5 {[%clk 0:01:24.4]} 27... Qxb2 {[%clk 0:00:38.4]} 28.
Qxb2 {[%clk 0:01:24.1]} 28... Rxb2 {[%clk 0:00:38.5]} 29. Bxd6 {[%clk
0:01:24.7]} 29... Rc8 {[%clk 0:00:38.8]} 30. Rb1 {[%clk 0:01:20.5]} 30... Rc2
{[%clk 0:00:38.9]} 31. Rdc1 {[%clk 0:01:20.7]} 31... Rd2 {[%clk 0:00:37.7]} 32.
Rb7 {[%clk 0:01:19.3]} 32... Be8 {[%clk 0:00:36.7]} 33. Rxa7 {[%clk 0:01:14.9]}
33... h5 {[%clk 0:00:37.2]} 34. h3 {[%clk 0:01:14.1]} 34... hxg4 {[%clk
0:00:37.4]} 35. hxg4 {[%clk 0:01:14.4]} 35... Bf8 {[%clk 0:00:38.3]} 36. Bxf8
{[%clk 0:01:13.2]} 36... Kxf8 {[%clk 0:00:39.2]} 37. Ra2 {[%clk 0:01:07.5]}
37... Rd4 {[%clk 0:00:34.5]} 38. Ne2 {[%clk 0:01:03]} 38... Rd3 {[%clk 0:00:33]}
39. Kf2 {[%clk 0:00:59.7]} 39... Rb3 {[%clk 0:00:31.6]} 40. Nc3 {[%clk
0:00:56.2]} 40... Rcb8 {[%clk 0:00:30.9]} 41. Rd2 {[%clk 0:00:53.9]} 41... Ke7
{[%clk 0:00:30.8]} 42. Bxc4 {[%clk 0:00:52.7]} 42... Rb2 {[%clk 0:00:29.8]} 43.
d6+ {[%clk 0:00:53.1]} 43... Kd8 {[%clk 0:00:29.2]} 44. Rd1 {[%clk 0:00:52.1]}
44... Bc6 {[%clk 0:00:28.3]} 45. Bd5 {[%clk 0:00:48.4]} 1-0

[Event "*** Titled Tuesday Blitz"]
[Site "Chess.com"]
[Date "2020.05.12"]
[Round "8"]
[White "GOGIEFF"]
[Black "Chepaschess"]
[Result "0-1"]
[WhiteElo "2940"]
[BlackElo "2781"]
[TimeControl "180+1"]
[EndTime "11:32:31 PDT"]
[Termination "Chepaschess won by resignation"]

1. d4 {[%clk 0:03:00.9]} 1... Nf6 {[%clk 0:02:59.9]} 2. c4 {[%clk 0:03:01]} 2...
g6 {[%clk 0:03:00.4]} 3. Nc3 {[%clk 0:02:59.7]} 3... d5 {[%clk 0:03:00.9]} 4.
cxd5 {[%clk 0:02:59.4]} 4... Nxd5 {[%clk 0:03:01.8]} 5. e4 {[%clk 0:02:59.7]}
5... Nxc3 {[%clk 0:03:01.4]} 6. bxc3 {[%clk 0:03:00.6]} 6... Bg7 {[%clk
0:03:01.4]} 7. Bc4 {[%clk 0:03:01.1]} 7... c5 {[%clk 0:03:00.9]} 8. Ne2 {[%clk
0:03:01.6]} 8... Nc6 {[%clk 0:03:00.9]} 9. Be3 {[%clk 0:03:01.5]} 9... O-O
{[%clk 0:03:00.1]} 10. O-O {[%clk 0:03:01.2]} 10... Bg4 {[%clk 0:02:56.9]} 11.
f3 {[%clk 0:03:00]} 11... Bd7 {[%clk 0:02:57.5]} 12. Rb1 {[%clk 0:02:58.3]}
12... cxd4 {[%clk 0:02:54.8]} 13. cxd4 {[%clk 0:02:57.8]} 13... a6 {[%clk
0:02:55.5]} 14. Qd2 {[%clk 0:02:39]} 14... Na5 {[%clk 0:02:35.7]} 15. Bd3 {[%clk
0:02:35]} 15... Bb5 {[%clk 0:02:36]} 16. Bxb5 {[%clk 0:02:08.1]} 16... axb5
{[%clk 0:02:35.1]} 17. Rxb5 {[%clk 0:02:08.4]} 17... Nc4 {[%clk 0:02:34.5]} 18.
Qd3 {[%clk 0:02:08.4]} 18... Nxe3 {[%clk 0:02:34.3]} 19. Qxe3 {[%clk 0:02:08.1]}
19... Rxa2 {[%clk 0:02:34.9]} 20. Rxb7 {[%clk 0:02:05.2]} 20... Qa8 {[%clk
0:02:27.4]} 21. Rfb1 {[%clk 0:01:46.9]} 21... Qa6 {[%clk 0:02:06.2]} 22. Ng3
{[%clk 0:01:33.5]} 22... Qc4 {[%clk 0:01:56.5]} 23. Qb3 {[%clk 0:01:09]} 23...
Qxd4+ {[%clk 0:01:41.1]} 24. Kh1 {[%clk 0:01:08.5]} 24... Qf2 {[%clk 0:01:41.3]}
25. Rg1 {[%clk 0:00:58.8]} 25... Bd4 {[%clk 0:01:39.4]} 26. Qb1 {[%clk
0:00:54.8]} 26... Qxg1+ {[%clk 0:01:36.1]} 27. Qxg1 {[%clk 0:00:54.6]} 27...
Bxg1 {[%clk 0:01:37]} 28. Kxg1 {[%clk 0:00:55.5]} 28... Rd8 {[%clk 0:01:36.2]}
29. h4 {[%clk 0:00:35.5]} 29... Rd1+ {[%clk 0:01:32.7]} 30. Kh2 {[%clk
0:00:34.6]} 30... Rdd2 {[%clk 0:01:33.4]} 31. Kh3 {[%clk 0:00:31]} 31... Rxg2
{[%clk 0:01:32]} 32. h5 {[%clk 0:00:31.4]} 32... e6 {[%clk 0:01:12.2]} 33. h6
{[%clk 0:00:29.2]} 33... Rh2+ {[%clk 0:01:12.2]} 34. Kg4 {[%clk 0:00:28.3]}
34... Rxh6 {[%clk 0:01:12.8]} 35. e5 {[%clk 0:00:20.1]} 35... Ra4+ {[%clk
0:01:08.3]} 36. Kg5 {[%clk 0:00:20.1]} 36... Rh3 {[%clk 0:01:02]} 37. Ne4 {[%clk
0:00:17.6]} 37... Rh5+ {[%clk 0:00:58.5]} 38. Kf6 {[%clk 0:00:12.2]} 38... Rf5+
{[%clk 0:00:56.4]} 39. Ke7 {[%clk 0:00:12.2]} 39... Rxe4 {[%clk 0:00:44.2]} 40.
fxe4 {[%clk 0:00:11.2]} 40... Rf4 {[%clk 0:00:44.8]} 0-1

[Event "*** Titled Tuesday Blitz"]
[Site "Chess.com"]
[Date "2020.05.12"]
[Round "8"]
[White "Nikolaj_6"]
[Black "UmutErdemGunduz"]
[Result "1-0"]
[WhiteElo "2564"]
[BlackElo "2391"]
[TimeControl "180+1"]
[EndTime "11:32:31 PDT"]
[Termination "Nikolaj_6 won on time"]

1. e4 {[%clk 0:03:00.9]} 1... e5 {[%clk 0:02:59.6]} 2. Nf3 {[%clk 0:03:00.6]}
2... Nc6 {[%clk 0:02:57.8]} 3. Bb5 {[%clk 0:03:00.1]} 3... a6 {[%clk 0:02:56.5]}
4. Ba4 {[%clk 0:02:59.7]} 4... Nf6 {[%clk 0:02:56.1]} 5. O-O {[%clk 0:02:59]}
5... Be7 {[%clk 0:02:54.8]} 6. Re1 {[%clk 0:02:58.5]} 6... b5 {[%clk 0:02:55.4]}
7. Bb3 {[%clk 0:02:58.7]} 7... O-O {[%clk 0:02:56.3]} 8. c3 {[%clk 0:02:58.4]}
8... d5 {[%clk 0:02:49.6]} 9. exd5 {[%clk 0:02:58.4]} 9... Nxd5 {[%clk
0:02:50.5]} 10. Nxe5 {[%clk 0:02:58.1]} 10... Nxe5 {[%clk 0:02:50.2]} 11. Rxe5
{[%clk 0:02:58.8]} 11... c6 {[%clk 0:02:51]} 12. d3 {[%clk 0:02:58.7]} 12... Bd6
{[%clk 0:02:48.9]} 13. Re1 {[%clk 0:02:58]} 13... Qh4 {[%clk 0:02:01.2]} 14. g3
{[%clk 0:02:55.4]} 14... Qh3 {[%clk 0:02:01.5]} 15. Re4 {[%clk 0:02:54.5]} 15...
Be6 {[%clk 0:01:58.5]} 16. Nd2 {[%clk 0:02:40.9]} 16... Rae8 {[%clk 0:01:49.8]}
17. Rh4 {[%clk 0:02:37.3]} 17... Qf5 {[%clk 0:01:47.1]} 18. d4 {[%clk
0:02:31.9]} 18... h6 {[%clk 0:01:33.9]} 19. Bc2 {[%clk 0:02:26.1]} 19... Qf6
{[%clk 0:01:29.7]} 20. Ne4 {[%clk 0:02:25.9]} 20... Qe7 {[%clk 0:01:30.1]} 21.
Nxd6 {[%clk 0:02:24.5]} 21... Qxd6 {[%clk 0:01:31]} 22. Qd3 {[%clk 0:02:18.8]}
22... f5 {[%clk 0:01:26.3]} 23. Bd2 {[%clk 0:02:05.8]} 23... Bd7 {[%clk
0:01:12.2]} 24. a4 {[%clk 0:01:55.6]} 24... g5 {[%clk 0:01:12.1]} 25. Rh5 {[%clk
0:01:34.3]} 25... Qg6 {[%clk 0:01:06.4]} 26. g4 {[%clk 0:01:32.3]} 26... Re4
{[%clk 0:01:00.1]} 27. f3 {[%clk 0:01:23.5]} 27... Nf4 {[%clk 0:00:45.2]} 28.
Bxf4 {[%clk 0:01:19]} 28... Rxf4 {[%clk 0:00:46.1]} 29. Re1 {[%clk 0:01:09.2]}
29... Qg7 {[%clk 0:00:40]} 30. h4 {[%clk 0:00:52]} 30... fxg4 {[%clk 0:00:13.6]}
31. hxg5 {[%clk 0:00:47.3]} 31... gxf3 {[%clk 0:00:12.9]} 32. Bb3+ {[%clk
0:00:45.5]} 32... Kh8 {[%clk 0:00:13.2]} 33. Kf2 {[%clk 0:00:37.6]} 33... R4f6
{[%clk 0:00:03.6]} 34. Reh1 {[%clk 0:00:33.1]} 1-0

[Event "*** Titled Tuesday Blitz"]
[Site "Chess.com"]
[Date "2020.05.12"]
[Round "8"]
[White "mirochka"]
[Black "davigator"]
[Result "0-1"]
[WhiteElo "2175"]
[BlackElo "2373"]
[TimeControl "180+1"]
[EndTime "11:32:31 PDT"]
[Termination "davigator won on time"]

1. e4 {[%clk 0:03:00.9]} 1... c5 {[%clk 0:02:49.3]} 2. b4 {[%clk 0:02:59.7]}
2... cxb4 {[%clk 0:02:49]} 3. a3 {[%clk 0:02:59.1]} 3... bxa3 {[%clk 0:02:48.9]}
4. d4 {[%clk 0:02:58.7]} 4... d6 {[%clk 0:02:49.1]} 5. Nxa3 {[%clk 0:02:49]}
5... Nf6 {[%clk 0:02:49]} 6. Bd3 {[%clk 0:02:47.2]} 6... e6 {[%clk 0:02:49]} 7.
f4 {[%clk 0:02:43.5]} 7... Be7 {[%clk 0:02:32.4]} 8. Nf3 {[%clk 0:02:41.6]} 8...
O-O {[%clk 0:02:32.2]} 9. O-O {[%clk 0:02:36.5]} 9... b6 {[%clk 0:02:26.3]} 10.
e5 {[%clk 0:02:31]} 10... Nd5 {[%clk 0:02:24]} 11. c4 {[%clk 0:02:25.7]} 11...
Nb4 {[%clk 0:02:24.1]} 12. Be4 {[%clk 0:02:23.1]} 12... d5 {[%clk 0:02:24.2]}
13. cxd5 {[%clk 0:02:15.7]} 13... Nxd5 {[%clk 0:02:23.9]} 14. Ng5 {[%clk
0:01:59.8]} 14... h6 {[%clk 0:02:17.3]} 15. Qh5 {[%clk 0:01:45.4]} 15... Nc6
{[%clk 0:02:10.9]} 16. Nb5 {[%clk 0:01:20.8]} 16... a6 {[%clk 0:01:58.7]} 17.
Ba3 {[%clk 0:01:12.9]} 17... Ncb4 {[%clk 0:01:37.5]} 18. Nd6 {[%clk 0:00:54.6]}
18... Bxd6 {[%clk 0:01:36.2]} 19. exd6 {[%clk 0:00:53.3]} 19... Rb8 {[%clk
0:01:32.6]} 20. Bxd5 {[%clk 0:00:42.8]} 20... Nxd5 {[%clk 0:01:27.1]} 21. d7
{[%clk 0:00:32.8]} 21... Qxd7 {[%clk 0:01:27.2]} 22. Bxf8 {[%clk 0:00:25.9]}
22... Kxf8 {[%clk 0:01:25.2]} 23. Ne4 {[%clk 0:00:20.8]} 23... Ne3 {[%clk
0:01:13.5]} 24. Rf3 {[%clk 0:00:18.2]} 24... Qxd4 {[%clk 0:01:13]} 25. Qe5
{[%clk 0:00:14.2]} 25... Qxe5 {[%clk 0:01:11.7]} 26. fxe5 {[%clk 0:00:14.6]}
26... Nf5 {[%clk 0:01:10.2]} 27. g4 {[%clk 0:00:12.9]} 27... Nh4 {[%clk
0:01:07.9]} 28. Rd3 {[%clk 0:00:12.4]} 28... Bb7 {[%clk 0:01:06.3]} 29. Re1
{[%clk 0:00:10.3]} 29... Ng6 {[%clk 0:01:04.6]} 30. Nd6 {[%clk 0:00:08.8]} 30...
Bd5 {[%clk 0:01:04.5]} 31. Rc3 {[%clk 0:00:06.3]} 31... Rd8 {[%clk 0:00:42.6]}
32. Rc7 {[%clk 0:00:06]} 32... Ne7 {[%clk 0:00:42.9]} 33. Rf1 {[%clk 0:00:05]}
33... f5 {[%clk 0:00:42]} 34. gxf5 {[%clk 0:00:04.5]} 34... Nxf5 {[%clk
0:00:41.6]} 35. Rf7+ {[%clk 0:00:03.2]} 35... Kg8 {[%clk 0:00:41]} 36. Nxf5
{[%clk 0:00:01.6]} 36... exf5 {[%clk 0:00:41.1]} 0-1